fUST/lending_fUST_20250808
["ID","MTS","AMOUNT","RATE_DAILY","PERIOD"]
[377878190,1754591450507,-745.96,0.00023561,2]
[377878191,1754591450516,-1908.18,0.00023561,2]
[377878192,1754591450525,-597.78,0.00023561,2]
[377878193,1754591450535,-552.74152961,0.00023561,2]
[377878194,1754591450544,-870.18,0.00023561,2]
[377878195,1754591450553,-460.0,0.00023561,2]
[377878196,1754591450563,-537.2454953,0.00023561,2]
[377878197,1754591450572,-460.0,0.00023561,2]
[377878198,1754591450582,-460.0,0.00023561,2]
[377878199,1754591450591,-472.13,0.00023561,2]
[377878200,1754591450601,-460.0,0.00023561,2]
[377878201,1754591450611,-968.41,0.00023561,2]
[377878202,1754591450620,-1237.01,0.00023561,2]
[377878203,1754591450630,-460.0,0.00023561,2]
[377878204,1754591450639,-838.93,0.00023561,2]
[377878205,1754591450648,-460.0,0.00023561,2]
[377878206,1754591450658,-460.0,0.00023561,2]
[377878207,1754591450667,-524.33,0.00023561,2]
[377878208,1754591450677,-1198.43,0.00023561,2]
[377878209,1754591450687,-5888.0,0.00023565,2]
[377878210,1754591450701,-7548.02499946,0.000236,2]
[377878211,1754591450709,-2000.0,0.00023616,2]
[377878212,1754591450719,-151.0,0.000237,8]
[377878213,1754591450729,-171.80531995,0.00023735,2]
[377878214,1754591450738,-2020.0,0.00023763,2]
[377878215,1754591450749,-2000.0,0.00023816,2]
[377878216,1754591450758,-2000.0,0.00023816,2]
[377878217,1754591450768,-1646.67618749,0.00023816,2]
[377878218,1754591450777,-1680.0,0.00023817,2]
[377878219,1754591450787,-460.0,0.00023835,2]
[377878220,1754591450796,-422.31,0.00023835,2]
[377878221,1754591450806,-460.0,0.00023835,2]
[377878222,1754591450816,-460.0,0.00023835,2]
[377878223,1754591450825,-1675.81,0.00023835,2]
[377878224,1754591450836,-740.32,0.00023835,2]
[377878225,1754591450846,-687.45,0.00023835,2]
[377878226,1754591450856,-460.0,0.00023835,2]
[377878227,1754591450866,-460.0,0.00023835,2]
[377878228,1754591450875,-460.0,0.00023835,2]
[377878229,1754591450886,-2680.72,0.00023835,2]
[377878230,1754591450895,-212.64469959,0.00023835,2]
[377878231,1754591450905,-460.0,0.00023835,2]
[377878232,1754591450914,-460.0,0.00023835,2]
[377878233,1754591450924,-538.71,0.00023835,2]
[377878234,1754591450934,-477.32359781,0.00023835,2]
[377878235,1754591450944,-460.0,0.00023835,2]
[377878236,1754591450954,-1153.34,0.00023835,2]
[377878237,1754591450964,-272.87984282,0.00023835,2]
[377878238,1754591450974,-501.83922112,0.00023835,2]
[377878239,1754591450983,-460.0,0.00023835,2]
[377878240,1754591450993,-460.0,0.00023835,2]
[377878241,1754591451002,-460.0,0.00023835,2]
[377878242,1754591451012,-604.86,0.00023835,2]
[377878243,1754591451022,-629.08,0.00023835,2]
[377878244,1754591451032,-460.0,0.00023835,2]
[377878245,1754591451042,-552.86,0.00023835,2]
[377878246,1754591451052,-263.57619824,0.00023835,2]
[377878247,1754591451061,-460.0,0.00023835,2]
[377878248,1754591451071,-1273.57,0.00023835,2]
[377878249,1754591451080,-2632.58,0.00023835,2]
[377878250,1754591451090,-460.0,0.00023835,2]
[377878251,1754591451099,-460.0,0.00023835,2]
[377878252,1754591451109,-460.0,0.00023835,2]
[377878253,1754591451118,-460.0,0.00023835,2]
[377878254,1754591451128,-460.0,0.00023835,2]
[377878255,1754591451137,-460.0,0.00023835,2]
[377878256,1754591451146,-991.38,0.00023835,2]
[377878257,1754591451155,-762.83,0.00023835,2]
[377878258,1754591451164,-460.0,0.00023835,2]
[377878259,1754591451174,-460.0,0.00023835,2]
[377878260,1754591451183,-460.0,0.00023835,2]
[377878261,1754591451193,-1078.52,0.00023835,2]
[377878262,1754591451203,-1185.43,0.00023835,2]
[377878263,1754591451212,-460.0,0.00023835,2]
[377878264,1754591451222,-460.0,0.00023835,2]
[377878265,1754591451232,-460.0,0.00023835,2]
[377878266,1754591451241,-460.0,0.00023835,2]
[377878267,1754591451251,-604.3,0.00023835,2]
[377878268,1754591451260,-930.24,0.00023835,2]
[377878269,1754591451269,-786.28,0.00023835,2]
[377878270,1754591451279,-460.0,0.00023835,2]
[377878271,1754591451288,-460.0,0.00023835,2]
[377878272,1754591451298,-460.0,0.00023835,2]
[377878273,1754591451307,-460.0,0.00023835,2]
[377878274,1754591451316,-460.0,0.00023835,2]
[377878275,1754591451326,-936.06,0.00023835,2]
[377878276,1754591451337,-460.0,0.00023835,2]
[377878277,1754591451346,-3551.15,0.00023835,2]
[377878278,1754591451356,-2060.12,0.00023835,2]
[377878279,1754591451366,-2167.41,0.00023835,2]
[377878280,1754591451376,-1123.67,0.00023835,2]
[377878281,1754591451386,-1261.89,0.00023835,2]
[377878282,1754591451396,-990.44,0.00023835,2]
[377878283,1754591451405,-460.0,0.00023835,2]
[377878284,1754591451415,-460.0,0.00023835,2]
[377878285,1754591451424,-962.22,0.00023835,2]
[377878286,1754591451434,-460.0,0.00023835,2]
[377878287,1754591451444,-590.22,0.00023835,2]
[377878288,1754591451454,-747.02,0.00023835,2]
[377878289,1754591451464,-460.0,0.00023835,2]
[377878290,1754591451473,-200.03954777,0.00023835,2]
[377878291,1754591451483,-460.0,0.00023835,2]
[377878292,1754591451492,-460.0,0.00023835,2]
[377878293,1754591451502,-1641.72,0.00023835,2]
[377878294,1754591451511,-823.69,0.00023835,2]
[377878295,1754591451521,-460.0,0.00023835,2]
[377878296,1754591451531,-937.91,0.00023835,2]
[377878297,1754591451540,-2839.66,0.00023835,2]
[377878298,1754591451549,-460.0,0.00023835,2]
[377878299,1754591451558,-460.0,0.00023835,2]
[377878300,1754591451567,-460.0,0.00023835,2]
[377878301,1754591451577,-460.0,0.00023835,2]
[377878302,1754591451587,-753.95,0.00023835,2]
[377878303,1754591451596,-460.0,0.00023835,2]
[377878304,1754591451606,-460.0,0.00023835,2]
[377878305,1754591451615,-2384.94,0.00023835,2]
[377878306,1754591451624,-469.55,0.00023835,2]
[377878307,1754591451634,-1628.0,0.00023835,2]
[377878308,1754591451643,-3296.64,0.00023835,2]
[377878309,1754591451652,-475.55,0.00023835,2]
[377878310,1754591451662,-460.0,0.00023835,2]
[377878311,1754591451671,-721.58,0.00023835,2]
[377878312,1754591451681,-745.96,0.00023835,2]
[377878313,1754591451691,-1908.18,0.00023835,2]
[377878314,1754591451703,-597.78,0.00023835,2]
[377878315,1754591451713,-578.32,0.00023835,2]
[377878316,1754591451723,-870.18,0.00023835,2]
[377878317,1754591451732,-476.97,0.00023835,2]
[377878318,1754591451743,-460.0,0.00023835,2]
[377878319,1754591451753,-460.0,0.00023835,2]
[377878320,1754591451763,-472.13,0.00023835,2]
[377878321,1754591451773,-460.0,0.00023835,2]
[377878322,1754591451783,-968.41,0.00023835,2]
[377878323,1754591451793,-1237.01,0.00023835,2]
[377878324,1754591451803,-460.0,0.00023835,2]
[377878325,1754591451813,-838.93,0.00023835,2]
[377878326,1754591451822,-460.0,0.00023835,2]
[377878327,1754591451832,-551.24337789,0.00023835,2]
[377878328,1754591451841,-524.33,0.00023835,2]
[377878329,1754591451851,-151.0,0.00023896,2]
[377878330,1754591451861,-151.0,0.000239,9]
[377878331,1754591451871,-213.80066114,0.000239,2]
[377878332,1754591451880,-2263.0,0.00023946,2]
[377878333,1754591451890,-2020.0,0.00023969,2]
[377878334,1754591451900,-160.0,0.00023997,2]
[377878335,1754591451909,-160.0,0.00024,7]
[377878336,1754591451919,-160.0,0.00024,7]
[377878337,1754591451928,-160.0,0.00024,7]
[377878338,1754591451938,-160.0,0.00024,7]
[377878339,1754591451949,-312.16666667,0.00024,7]
[377878340,1754591451959,-842.63596909,0.00024,7]
[377878341,1754591451969,-160.0,0.00024,7]
[377878342,1754591451979,-160.0,0.00024,7]
[377878343,1754591451988,-527.57568145,0.00024,7]
[377878344,1754591451998,-160.0,0.00024,7]
[377878345,1754591452007,-216.52217562,0.00024,7]
[377878346,1754591452017,-231.83071243,0.00024,7]
[377878347,1754591452027,-367.08029244,0.00024009,2]
[377878348,1754591452036,-460.0,0.00024109,2]
[377878349,1754591452046,-460.0,0.00024109,2]
[377878350,1754591452057,-460.0,0.00024109,2]
[377878351,1754591452067,-1675.81,0.00024109,2]
[377878352,1754591452077,-740.32,0.00024109,2]
[377878353,1754591452087,-687.45,0.00024109,2]
[377878354,1754591452096,-460.0,0.00024109,2]
[377878355,1754591452106,-460.0,0.00024109,2]
[377878356,1754591452116,-460.0,0.00024109,2]
[377878357,1754591452126,-2680.72,0.00024109,2]
[377878358,1754591452136,-460.0,0.00024109,2]
[377878359,1754591452145,-531.24570993,0.00024109,2]
[377878360,1754591452155,-538.71,0.00024109,2]
[377878361,1754591452164,-460.0,0.00024109,2]
[377878362,1754591452173,-1153.34,0.00024109,2]
[377878363,1754591452183,-460.0,0.00024109,2]
[377878364,1754591452193,-460.0,0.00024109,2]
[377878365,1754591452202,-460.0,0.00024109,2]
[377878366,1754591452212,-604.86,0.00024109,2]
[377878367,1754591452222,-629.08,0.00024109,2]
[377878368,1754591452231,-552.86,0.00024109,2]
[377878369,1754591452241,-460.0,0.00024109,2]
[377878370,1754591452251,-1273.57,0.00024109,2]
[377878371,1754591452260,-2632.58,0.00024109,2]
[377878372,1754591452270,-460.0,0.00024109,2]
[377878373,1754591452279,-460.0,0.00024109,2]
[377878374,1754591452288,-460.0,0.00024109,2]
[377878375,1754591452298,-460.0,0.00024109,2]
[377878376,1754591452307,-460.0,0.00024109,2]
[377878377,1754591452317,-460.0,0.00024109,2]
[377878378,1754591452326,-991.38,0.00024109,2]
[377878379,1754591452336,-762.83,0.00024109,2]
[377878380,1754591452345,-460.0,0.00024109,2]
[377878381,1754591452354,-460.0,0.00024109,2]
[377878382,1754591452364,-1078.52,0.00024109,2]
[377878383,1754591452373,-1185.43,0.00024109,2]
[377878384,1754591452382,-460.0,0.00024109,2]
[377878385,1754591452392,-460.0,0.00024109,2]
[377878386,1754591452401,-460.0,0.00024109,2]
[377878387,1754591452410,-460.0,0.00024109,2]
[377878388,1754591452419,-604.3,0.00024109,2]
[377878389,1754591452429,-930.24,0.00024109,2]
[377878390,1754591452438,-786.28,0.00024109,2]
[377878391,1754591452448,-460.0,0.00024109,2]
[377878392,1754591452457,-460.0,0.00024109,2]
[377878393,1754591452467,-460.0,0.00024109,2]
[377878394,1754591452476,-460.0,0.00024109,2]
[377878395,1754591452486,-460.0,0.00024109,2]
[377878396,1754591452495,-936.06,0.00024109,2]
[377878397,1754591452505,-460.0,0.00024109,2]
[377878398,1754591452514,-3551.15,0.00024109,2]
[377878399,1754591452524,-2060.12,0.00024109,2]
[377878400,1754591452534,-2167.41,0.00024109,2]
[377878401,1754591452544,-1123.67,0.00024109,2]
[377878402,1754591452553,-1261.89,0.00024109,2]
[377878403,1754591452562,-990.44,0.00024109,2]
[377878404,1754591452572,-460.0,0.00024109,2]
[377878405,1754591452581,-962.22,0.00024109,2]
[377878406,1754591452591,-460.0,0.00024109,2]
[377878407,1754591452600,-590.22,0.00024109,2]
[377878408,1754591452610,-747.02,0.00024109,2]
[377878409,1754591452620,-460.0,0.00024109,2]
[377878410,1754591452629,-460.0,0.00024109,2]
[377878411,1754591452639,-460.0,0.00024109,2]
[377878412,1754591452648,-1641.72,0.00024109,2]
[377878413,1754591452658,-823.69,0.00024109,2]
[377878414,1754591452668,-937.91,0.00024109,2]
[377878415,1754591452677,-2839.66,0.00024109,2]
[377878416,1754591452687,-460.0,0.00024109,2]
[377878417,1754591452701,-460.0,0.00024109,2]
[377878418,1754591452711,-460.0,0.00024109,2]
[377878419,1754591452760,-460.0,0.00024109,2]
[377878420,1754591452771,-753.95,0.00024109,2]
[377878421,1754591452781,-219.92921328,0.00024109,2]
[377878422,1754591452791,-460.0,0.00024109,2]
[377878423,1754591452800,-2384.94,0.00024109,2]
[377878424,1754591452809,-469.55,0.00024109,2]
[377878425,1754591452819,-1628.0,0.00024109,2]
[377878426,1754591452829,-3296.64,0.00024109,2]
[377878427,1754591452838,-475.55,0.00024109,2]
[377878428,1754591452848,-460.0,0.00024109,2]
[377878429,1754591452858,-721.58,0.00024109,2]
[377878430,1754591452869,-745.96,0.00024109,2]
[377878431,1754591452879,-1908.18,0.00024109,2]
[377878432,1754591452888,-597.78,0.00024109,2]
[377878433,1754591452898,-578.32,0.00024109,2]
[377878434,1754591452908,-870.18,0.00024109,2]
[377878435,1754591452917,-460.0,0.00024109,2]
[377878436,1754591452926,-460.0,0.00024109,2]
[377878437,1754591452936,-472.13,0.00024109,2]
[377878438,1754591452946,-460.0,0.00024109,2]
[377878439,1754591452956,-968.41,0.00024109,2]
[377878440,1754591452965,-1237.01,0.00024109,2]
[377878441,1754591452974,-460.0,0.00024109,2]
[377878442,1754591452984,-838.93,0.00024109,2]
[377878443,1754591452994,-413.77319874,0.00024109,2]
[377878444,1754591453004,-201.22167384,0.00024139,2]
[377878445,1754591453013,-151.0,0.00024139,2]
[377878446,1754591453023,-151.73266261,0.00024139,2]
[377878447,1754591453032,-151.24638763,0.00024139,2]
[377878448,1754591453042,-152.11740545,0.00024139,2]
[377878449,1754591453051,-156.77208899,0.00024139,2]
[377878450,1754591453060,-2263.0,0.00024142,2]
[377878451,1754591453070,-2500.0,0.00024164,2]
[377878452,1754591453079,-5888.0,0.00024171,2]
[377878453,1754591453089,-2263.0,0.00024176,2]
[377878454,1754591453098,-655.18,0.000242,6]
[377878455,1754591453107,-250.0,0.00024333,2]
[377878456,1754591453116,-150.0,0.00024333,2]
[377878457,1754591453126,-205.622,0.00024333,2]
[377878458,1754591453136,-275.653279,0.00024342,2]
[377878459,1754591453145,-2500.0,0.00024364,2]
[377878460,1754591453154,-2500.0,0.00024364,2]
[377878461,1754591453163,-460.0,0.00024383,2]
[377878462,1754591453172,-460.0,0.00024383,2]
[377878463,1754591453182,-1675.81,0.00024383,2]
[377878464,1754591453192,-740.32,0.00024383,2]
[377878465,1754591453201,-687.45,0.00024383,2]
[377878466,1754591453210,-460.0,0.00024383,2]
[377878467,1754591453219,-460.0,0.00024383,2]
[377878468,1754591453229,-460.0,0.00024383,2]
[377878469,1754591453238,-2680.72,0.00024383,2]
[377878470,1754591453247,-460.0,0.00024383,2]
[377878471,1754591453257,-538.71,0.00024383,2]
[377878472,1754591453267,-460.0,0.00024383,2]
[377878473,1754591453276,-1153.34,0.00024383,2]
[377878474,1754591453285,-367.02677627,0.00024383,2]
[377878475,1754591453295,-257.29658908,0.00024383,2]
[377878476,1754591453304,-460.0,0.00024383,2]
[377878477,1754591453313,-604.86,0.00024383,2]
[377878478,1754591453323,-629.08,0.00024383,2]
[377878479,1754591453332,-552.86,0.00024383,2]
[377878480,1754591453341,-460.0,0.00024383,2]
[377878481,1754591453350,-1273.57,0.00024383,2]
[377878482,1754591453359,-2632.58,0.00024383,2]
[377878483,1754591453369,-460.0,0.00024383,2]
[377878484,1754591453378,-460.0,0.00024383,2]
[377878485,1754591453388,-315.58,0.00024383,2]
[377878486,1754591453397,-460.0,0.00024383,2]
[377878487,1754591453407,-460.0,0.00024383,2]
[377878488,1754591453417,-460.0,0.00024383,2]
[377878489,1754591453426,-991.38,0.00024383,2]
[377878490,1754591453435,-762.83,0.00024383,2]
[377878491,1754591453446,-460.0,0.00024383,2]
[377878492,1754591453455,-460.0,0.00024383,2]
[377878493,1754591453465,-1078.52,0.00024383,2]
[377878494,1754591453474,-1185.43,0.00024383,2]
[377878495,1754591453484,-460.0,0.00024383,2]
[377878496,1754591453494,-460.0,0.00024383,2]
[377878497,1754591453504,-460.0,0.00024383,2]
[377878498,1754591453513,-460.0,0.00024383,2]
[377878499,1754591453523,-604.3,0.00024383,2]
[377878500,1754591453532,-930.24,0.00024383,2]
[377878501,1754591453541,-786.28,0.00024383,2]
[377878502,1754591453550,-460.0,0.00024383,2]
[377878503,1754591453558,-460.0,0.00024383,2]
[377878504,1754591453567,-460.0,0.00024383,2]
[377878505,1754591453576,-460.0,0.00024383,2]
[377878506,1754591453585,-460.0,0.00024383,2]
[377878507,1754591453595,-936.06,0.00024383,2]
[377878508,1754591453604,-460.0,0.00024383,2]
[377878509,1754591453613,-3551.15,0.00024383,2]
[377878510,1754591453622,-2060.12,0.00024383,2]
[377878511,1754591453632,-2167.41,0.00024383,2]
[377878512,1754591453641,-1123.67,0.00024383,2]
[377878513,1754591453652,-1261.89,0.00024383,2]
[377878514,1754591453662,-990.44,0.00024383,2]
[377878515,1754591453671,-460.0,0.00024383,2]
[377878516,1754591453680,-962.22,0.00024383,2]
[377878517,1754591453690,-460.0,0.00024383,2]
[377878518,1754591453702,-590.22,0.00024383,2]
[377878519,1754591453711,-747.02,0.00024383,2]
[377878520,1754591453721,-460.0,0.00024383,2]
[377878521,1754591453731,-460.0,0.00024383,2]
[377878522,1754591453740,-460.0,0.00024383,2]
[377878523,1754591453750,-1641.72,0.00024383,2]
[377878524,1754591453760,-823.69,0.00024383,2]
[377878525,1754591453769,-937.91,0.00024383,2]
[377878526,1754591453779,-2839.66,0.00024383,2]
[377878527,1754591453788,-460.0,0.00024383,2]
[377878528,1754591453798,-460.0,0.00024383,2]
[377878529,1754591453808,-460.0,0.00024383,2]
[377878530,1754591453818,-460.0,0.00024383,2]
[377878531,1754591453827,-753.95,0.00024383,2]
[377878532,1754591453837,-460.0,0.00024383,2]
[377878533,1754591453847,-2384.94,0.00024383,2]
[377878534,1754591453857,-469.55,0.00024383,2]
[377878535,1754591453867,-1628.0,0.00024383,2]
[377878536,1754591453877,-3296.64,0.00024383,2]
[377878537,1754591453887,-475.55,0.00024383,2]
[377878538,1754591453898,-460.0,0.00024383,2]
[377878539,1754591453908,-721.58,0.00024383,2]
[377878540,1754591453918,-259.996808,0.00024383,7]
[377878541,1754591453928,-151.0,0.00024383,7]
[377878542,1754591453940,-745.96,0.00024383,2]
[377878543,1754591453950,-1908.18,0.00024383,2]
[377878544,1754591453961,-151.0,0.00024383,7]
[377878545,1754591453970,-578.32,0.00024383,2]
[377878546,1754591453981,-597.78,0.00024383,2]
[377878547,1754591453992,-279.479306,0.00024383,7]
[377878548,1754591454001,-870.18,0.00024383,2]
[377878549,1754591454010,-151.0,0.00024383,7]
[377878550,1754591454031,-460.0,0.00024383,2]
[377878551,1754591454042,-460.0,0.00024383,2]
[377878552,1754591454052,-472.13,0.00024383,2]
[377878553,1754591454062,-460.0,0.00024383,2]
[377878554,1754591454073,-968.41,0.00024383,2]
[377878555,1754591454082,-1237.01,0.00024383,2]
[377878556,1754591454092,-460.0,0.00024383,2]
[377878557,1754591454102,-838.93,0.00024383,2]
[377878558,1754591454112,-5888.0,0.00024384,2]
[377878559,1754591454122,-2263.0,0.00024387,2]
[377878560,1754591454132,-2263.0,0.00024389,2]
[377878561,1754591454142,-151.0,0.00024413,2]
[377878562,1754591454152,-500.0,0.00024413,2]
[377878563,1754591454162,-151.0,0.00024413,2]
[377878564,1754591454172,-151.0,0.00024413,2]
[377878565,1754591454182,-151.0,0.00024413,2]
[377878566,1754591454191,-151.0,0.00024413,2]
[377878567,1754591454203,-151.0,0.00024413,2]
[377878568,1754591454213,-151.0,0.00024413,2]
[377878569,1754591454224,-151.0,0.00024413,2]
[377878570,1754591454234,-152.30336736,0.00024413,2]
[377878571,1754591454243,-151.0,0.00024413,2]
[377878572,1754591454253,-151.0,0.00024413,2]
[377878573,1754591454263,-395.7,0.00024516,2]
[377878574,1754591454272,-260.0,0.00024545,2]
[377878575,1754591454282,-2149.0,0.0002455,2]
[377878576,1754591454292,-636.0,0.0002455,2]
[377878577,1754591454302,-971.0,0.0002455,2]
[377878578,1754591454312,-408.0,0.0002455,2]
[377878579,1754591454321,-413.74,0.0002455,2]
[377878580,1754591454331,-367.08029244,0.00024557,2]
[377878581,1754591454341,-10112.45374756,0.000246,2]
[377878582,1754591454350,-287.00523529,0.0002463,13]
[377878583,1754591454359,-671.909778,0.0002465,2]
[377878584,1754591454369,-302505.73129495,0.0002465,2]
[377878585,1754591454379,-503.62307387,0.0002465,2]
[377878586,1754591454388,-151.797321,0.0002465,7]
[377878587,1754591454397,-243.579711,0.0002465,7]
[377878588,1754591454407,-460.0,0.00024657,2]
[377878589,1754591454417,-460.0,0.00024657,2]
[377878590,1754591454427,-1675.81,0.00024657,2]
[377878591,1754591454437,-740.32,0.00024657,2]
[377878592,1754591454448,-687.45,0.00024657,2]
[377878593,1754591454458,-460.0,0.00024657,2]
[377878594,1754591454467,-502.78868857,0.00024657,2]
[377878595,1754591454478,-460.0,0.00024657,2]
[377878596,1754591454487,-2680.72,0.00024657,2]
[377878597,1754591454497,-460.0,0.00024657,2]
[377878598,1754591454508,-538.71,0.00024657,2]
[377878599,1754591454517,-460.0,0.00024657,2]
[377878600,1754591454527,-1153.34,0.00024657,2]
[377878601,1754591454537,-460.0,0.00024657,2]
[377878602,1754591454547,-604.86,0.00024657,2]
[377878603,1754591454556,-629.08,0.00024657,2]
[377878604,1754591454567,-552.86,0.00024657,2]
[377878605,1754591454577,-460.0,0.00024657,2]
[377878606,1754591454586,-1273.57,0.00024657,2]
[377878607,1754591454596,-2632.58,0.00024657,2]
[377878608,1754591454606,-460.0,0.00024657,2]
[377878609,1754591454616,-377.09,0.00024657,2]
[377878610,1754591454626,-460.0,0.00024657,2]
[377878611,1754591454635,-460.0,0.00024657,2]
[377878612,1754591454645,-460.0,0.00024657,2]
[377878613,1754591454659,-151.0,0.00024657,7]
[377878614,1754591454669,-991.38,0.00024657,2]
[377878615,1754591454679,-762.83,0.00024657,2]
[377878616,1754591454689,-376.39,0.00024657,2]
[377878617,1754591454705,-151.0,0.00024657,7]
[377878618,1754591454714,-151.0,0.00024657,7]
[377878619,1754591454724,-151.0,0.00024657,7]
[377878620,1754591454735,-460.0,0.00024657,2]
[377878621,1754591454745,-151.0,0.00024657,7]
[377878622,1754591454754,-1078.52,0.00024657,2]
[377878623,1754591454765,-1185.43,0.00024657,2]
[377878624,1754591454775,-460.0,0.00024657,2]
[377878625,1754591454786,-151.0,0.00024657,7]
[377878626,1754591454796,-460.0,0.00024657,2]
[377878627,1754591454806,-460.0,0.00024657,2]
[377878628,1754591454816,-151.0,0.00024657,7]
[377878629,1754591454825,-460.0,0.00024657,2]
[377878630,1754591454835,-604.3,0.00024657,2]
[377878631,1754591454845,-930.24,0.00024657,2]
[377878632,1754591454857,-151.0,0.00024657,7]
[377878633,1754591454868,-786.28,0.00024657,2]
[377878634,1754591454878,-460.0,0.00024657,2]
[377878635,1754591454887,-460.0,0.00024657,2]
[377878636,1754591454897,-151.0,0.00024657,7]
[377878637,1754591454908,-460.0,0.00024657,2]
[377878638,1754591454918,-460.0,0.00024657,2]
[377878639,1754591454927,-460.0,0.00024657,2]
[377878640,1754591454939,-936.06,0.00024657,2]
[377878641,1754591454949,-460.0,0.00024657,2]
[377878642,1754591454959,-3551.15,0.00024657,2]
[377878643,1754591454970,-2060.12,0.00024657,2]
[377878644,1754591454980,-2167.41,0.00024657,2]
[377878645,1754591454990,-1123.67,0.00024657,2]
[377878646,1754591455001,-1261.89,0.00024657,2]
[377878647,1754591455012,-990.44,0.00024657,2]
[377878648,1754591455022,-460.0,0.00024657,2]
[377878649,1754591455032,-962.22,0.00024657,2]
[377878650,1754591455042,-409.66115639,0.00024657,2]
[377878651,1754591455051,-590.22,0.00024657,2]
[377878652,1754591455062,-747.02,0.00024657,2]
[377878653,1754591455072,-554.28360187,0.00024657,2]
[377878654,1754591455081,-151.0,0.00024657,7]
[377878655,1754591455091,-460.0,0.00024657,2]
[377878656,1754591455102,-460.0,0.00024657,2]
[377878657,1754591455112,-1641.72,0.00024657,2]
[377878658,1754591455122,-151.0,0.00024657,7]
[377878659,1754591455133,-823.69,0.00024657,2]
[377878660,1754591455143,-937.91,0.00024657,2]
[377878661,1754591455153,-151.0,0.00024657,7]
[377878662,1754591455163,-2839.66,0.00024657,2]
[377878663,1754591455173,-397.98280604,0.00024657,2]
[377878664,1754591455183,-229.439638,0.00024657,7]
[377878665,1754591455193,-518.68539951,0.00024657,2]
[377878666,1754591455203,-229.439638,0.00024657,7]
[377878667,1754591455214,-460.0,0.00024657,2]
[377878668,1754591455224,-460.0,0.00024657,2]
[377878669,1754591455234,-753.95,0.00024657,2]
[377878670,1754591455244,-460.0,0.00024657,2]
[377878671,1754591455255,-2384.94,0.00024657,2]
[377878672,1754591455265,-469.55,0.00024657,2]
[377878673,1754591455276,-1628.0,0.00024657,2]
[377878674,1754591455288,-3296.64,0.00024657,2]
[377878675,1754591455298,-475.55,0.00024657,2]
[377878676,1754591455308,-721.58,0.00024657,2]
[377878677,1754591455318,-151.0,0.00024657,7]
[377878678,1754591455329,-151.0,0.00024657,7]
[377878679,1754591455339,-745.96,0.00024657,2]
[377878680,1754591455349,-1908.18,0.00024657,2]
[377878681,1754591455362,-578.32,0.00024657,2]
[377878682,1754591455372,-597.78,0.00024657,2]
[377878683,1754591455382,-870.18,0.00024657,2]
[377878684,1754591455399,-460.0,0.00024657,2]
[377878685,1754591455410,-460.0,0.00024657,2]
[377878686,1754591455420,-472.13,0.00024657,2]
[377878687,1754591455430,-460.0,0.00024657,2]
[377878688,1754591455440,-968.41,0.00024657,2]
[377878689,1754591455450,-1237.01,0.00024657,2]